fUSD/lending_fUSD_20251230
["ID","MTS","AMOUNT","RATE_DAILY","PERIOD"]
[400080580,1767075039792,-898.84965273,0.000231,2]
[400080581,1767075039801,-1069.36344,0.0002312,2]
[400080583,1767075039811,-1069.36345,0.0002315,2]
[400080585,1767075039822,-6423.77945583,0.0002326,2]
[400080587,1767075039832,-9160.19672423,0.0002326,2]
[400080590,1767075039842,-155.90337168,0.0002333,2]
[400080592,1767075039852,-10000.0,0.0002333,2]
[400080594,1767075039861,-10000.0,0.0002333,2]
[400080596,1767075039871,-10000.0,0.0002333,2]
[400080598,1767075039881,-10000.0,0.0002333,2]
[400080600,1767075039891,-10000.0,0.0002333,2]
[400080602,1767075039900,-3220.30820702,0.0002333,2]
[400080604,1767075039912,-6779.69179298,0.0002333,2]
[400080607,1767075039926,-10000.0,0.0002333,2]
[400080609,1767075039936,-1069.36344,0.0002333,2]
[400080611,1767075039946,-1069.36345,0.0002333,2]
[400080613,1767075039955,-9.92698456,0.0002333,2]
[400080946,1767075043268,-151.0,0.00017614,2]
[400080948,1767075043278,-154.43973936,0.0002333,2]
[400080951,1767075043291,-904.99672608,0.0002333,2]
[400080953,1767075043300,-927.67657541,0.0002333,2]
[400080955,1767075043312,-141.68686459,0.0002333,2]
[400080957,1767075043322,-243.30913541,0.00023575,2]
[400080959,1767075043334,-18905.88462548,0.00023575,2]
[400080962,1767075043346,-264.57103691,0.00023575,2]
[400080964,1767075043355,-496.5189457,0.00023579,2]
[400080966,1767075043365,-12.08361603,0.00024,2]
[400081052,1767075044257,-2892.14510601,0.00024,2]
[400081180,1767075045459,-695.77127796,0.00024,2]
[400081182,1767075045470,-322.64002753,0.00024,2]
[400081184,1767075045479,-2000.0,0.000244,2]
[400081186,1767075045490,-625.59726769,0.00024658,2]
[400081190,1767075045517,-374.40273231,0.00024658,2]
[400081192,1767075045527,-188.39139826,0.00024752,2]
[400081195,1767075045542,-268.17,0.000248,7]
[400081197,1767075045552,-203.70905912,0.000248,2]
[400081199,1767075045562,-31400.607522,0.000248,3]
[400081201,1767075045571,-1274.44022948,0.00024852,2]
[400081203,1767075045581,-52383.36773463,0.000249,3]
[400081205,1767075045593,-538.9811538,0.000249,3]
[400081207,1767075045605,-928.58511849,0.000249,3]
[400081222,1767075045743,-598.44994,0.000249,3]
[400082786,1767075607704,-166.0,0.00013,2]
[400082787,1767075607731,-84.08092765,0.00013,2]
[400082809,1767075944137,-172.91907235,0.00013,2]
[400082810,1767075944158,-308.11,0.00013699,2]
[400082811,1767075944179,-13.60026354,0.000143,2]
[400082827,1767076041095,-300.0,0.00014299,2]
[400082828,1767076041117,-300.0,0.00014299,2]
[400082829,1767076041139,-236.39973646,0.000143,2]
[400082830,1767076041160,-1526.47109979,0.000143,2]
[400082831,1767076041182,-450.69714234,0.000143,2]
[400082832,1767076041204,-600.0,0.000143,2]
[400082833,1767076041226,-375.84300603,0.00015846,2]
[400082834,1767076042083,-263.99237695,0.00015846,2]
[400082835,1767076042104,-1221.792565,0.00016764,2]
[400082836,1767076042125,-493.84292283,0.00016998,2]
[400082837,1767076042146,-219.0,0.00016998,2]
[400082838,1767076042170,-300.0,0.00016999,2]
[400082839,1767076042191,-670.98213381,0.00016999,2]
[400082840,1767076042212,-300.0,0.00016999,2]
[400082841,1767076042233,-500.0,0.00016999,2]
[400082842,1767076042255,-280.77279173,0.00016999,2]
[400082843,1767076042280,-500.0,0.00016999,2]
[400082844,1767076042304,-288.34431128,0.00016999,2]
[400082845,1767076042329,-579.84291501,0.00016999,2]
[400082846,1767076042351,-500.0,0.00016999,2]
[400082847,1767076042373,-500.0,0.00016999,2]
[400082848,1767076042395,-360.94784475,0.00016999,2]
[400082849,1767076042415,-502.35740859,0.00016999,2]
[400082850,1767076042435,-500.0,0.00016999,2]
[400082851,1767076042460,-500.0,0.00016999,2]
[400082852,1767076042483,-500.0,0.00016999,2]
[400082853,1767076042504,-197.85943368,0.00016999,2]
[400082854,1767076042539,-500.0,0.00016999,2]
[400082855,1767076042563,-500.0,0.00016999,2]
[400082856,1767076042591,-301.15159669,0.00016999,2]
[400082881,1767076231549,-151.0,0.00016626,2]
[400082882,1767076231560,-151.0,0.00016626,2]
[400082883,1767076231570,-114.97000018,0.00016628,2]
[400082884,1767076231583,-36.02999982,0.00016628,2]
[400082885,1767076231593,-151.0,0.00016628,2]
[400082886,1767076231603,-151.0,0.00016645,2]
[400082887,1767076231613,-151.0,0.00016645,2]
[400082888,1767076231623,-86.59185458,0.00016898,2]
[400082889,1767076231635,-213.40814542,0.00016898,2]
[400082890,1767076231646,-191.13029619,0.00016899,2]
[400082891,1767076231662,-446.99893371,0.00016899,2]
[400082892,1767076231676,-612.35383556,0.00016899,2]
[400082893,1767076231687,-467.45030931,0.00016899,2]
[400082894,1767076231699,-208344.22902748,0.00016899,2]
[400082895,1767076231711,-62713.01000153,0.00016899,2]
[400082896,1767076231723,-67649.56445526,0.00016899,2]
[400082897,1767076231735,-49304.94314096,0.00016899,2]
[400082898,1767076231749,-6412.13770697,0.00016944,2]
[400082899,1767076231760,-497.34472634,0.00016944,2]
[400082900,1767076231770,-10739.90966951,0.0001699,2]
[400082901,1767076231782,-370.07396371,0.0001699,2]
[400082902,1767076231794,-462.11065713,0.0001699,2]
[400082927,1767076237616,-344.68623953,0.00016944,2]
[400082929,1767076237626,-2.59133873,0.00016989,2]
[400082930,1767076237676,-497.40866127,0.00016989,2]
[400082931,1767076237685,-133.77736873,0.00016989,2]
[400082932,1767076237697,-366.22263127,0.00016989,2]
[400082933,1767076237707,-244.9828199,0.00016989,2]
[400082934,1767076237737,-255.0171801,0.00016989,2]
[400082935,1767076237747,-500.0,0.00016989,2]
[400082936,1767076237757,-186.26906812,0.00016989,2]
[400082937,1767076237767,-500.0,0.00016989,2]
[400082938,1767076237777,-500.0,0.00016989,2]
[400082939,1767076237786,-457.76694798,0.00016989,2]
[400082940,1767076237797,-500.0,0.00016989,2]
[400082941,1767076237806,-243.38038911,0.00016989,2]
[400082942,1767076237850,-256.61961089,0.00016989,2]
[400082943,1767076237860,-88.93008645,0.00016989,2]
[400083111,1767076239638,-411.06991355,0.00016989,2]
[400083113,1767076239648,-500.0,0.00016989,2]
[400083115,1767076239658,-238.02991947,0.00016989,2]
[400083120,1767076239696,-261.97008053,0.00016989,2]
[400083122,1767076239705,-124.59381103,0.00016989,2]
[400083150,1767076239954,-309.2500002,0.00016989,2]
[400083153,1767076239966,-66.15618877,0.00016989,2]
[400083155,1767076239977,-500.0,0.00016989,2]
[400083157,1767076239986,-500.0,0.00016989,2]
[400083159,1767076239996,-500.0,0.00016989,2]
[400083161,1767076240006,-500.0,0.00016989,2]
[400083163,1767076240015,-500.0,0.00016989,2]
[400083165,1767076240025,-602.72700835,0.00016989,2]
[400083167,1767076240035,-575.0626501,0.00016989,2]
[400083169,1767076240045,-500.0,0.00016989,2]
[400083172,1767076240054,-500.0,0.00016989,2]
[400083174,1767076240064,-500.0,0.00016989,2]
[400083176,1767076240073,-500.0,0.00016989,2]
[400083178,1767076240083,-500.0,0.00016989,2]
[400083180,1767076240092,-500.0,0.00016989,2]
[400083182,1767076240102,-500.0,0.00016989,2]
[400083184,1767076240111,-500.0,0.00016989,2]
[400083186,1767076240121,-500.0,0.00016989,2]
[400083188,1767076240130,-500.0,0.00016989,2]
[400083190,1767076240141,-500.0,0.00016989,2]
[400083193,1767076240164,-500.0,0.00016989,2]
[400083196,1767076240176,-500.0,0.00016989,2]
[400083198,1767076240187,-500.0,0.00016989,2]
[400083200,1767076240197,-500.0,0.00016989,2]
[400083202,1767076240207,-500.0,0.00016989,2]
[400083204,1767076240218,-500.0,0.00016989,2]
[400083206,1767076240228,-500.0,0.00016989,2]
[400083208,1767076240238,-500.0,0.00016989,2]
[400083210,1767076240248,-500.0,0.00016989,2]
[400083212,1767076240258,-500.0,0.00016989,2]
[400083215,1767076240268,-500.0,0.00016989,2]
[400083217,1767076240278,-500.0,0.00016989,2]
[400083219,1767076240288,-500.0,0.00016989,2]
[400083221,1767076240298,-500.0,0.00016989,2]
[400083223,1767076240308,-500.0,0.00016989,2]
[400083225,1767076240319,-500.0,0.00016989,2]
[400083227,1767076240329,-500.0,0.00016989,2]
[400083229,1767076240339,-500.0,0.00016989,2]
[400083231,1767076240349,-500.0,0.00016989,2]
[400083233,1767076240359,-500.0,0.00016989,2]
[400083236,1767076240370,-500.0,0.00016989,2]
[400083238,1767076240379,-500.0,0.00016989,2]
[400083240,1767076240389,-500.0,0.00016989,2]
[400083242,1767076240399,-6907.1457847,0.0001699,2]
[400083244,1767076240415,-82404.70750945,0.0001699,2]
[400083246,1767076240424,-201.91382997,0.0001699,2]
[400083249,1767076240434,-1200.0,0.00016998,2]
[400083251,1767076240444,-250.0,0.00017,2]
[400083253,1767076240453,-1790282.42464036,0.00017,2]
[400083255,1767076240470,-1820.89468532,0.00017,2]
[400083269,1767076240589,-2454.504894,0.00017,2]
[400083557,1767076243426,-188.39139825,0.00016944,2]
[400083559,1767076243436,-250.77644318,0.00017,2]
[400083647,1767076244379,-512.36058276,0.00017,2]
[400083776,1767076245548,-3251.049892,0.00017,2]
[400083785,1767076245607,-170321.46147855,0.00017,2]
[400083786,1767076245669,-5823.65458347,0.00017,2]
[400083787,1767076245681,-749.18263134,0.00017,2]
[400083789,1767076245693,-1063.53697006,0.00017,2]
[400083791,1767076245705,-1450.56010005,0.00017,2]
[400083795,1767076245735,-533.9999989,0.00017,2]
[400083796,1767076245852,-87540.44671193,0.00017,2]
[400083797,1767076245864,-1746.24,0.00017,2]
[400083798,1767076297154,377.0,0.0003,120]
[400083819,1767076472143,167.49,0.00027112,120]
[400083822,1767076640647,159.15,8.748e-05,2]
[400083823,1767076640826,159.15,9.421e-05,2]
[400083824,1767076641030,159.15,0.00010094,2]
[400083825,1767076641323,159.15,0.00010767,2]
[400083826,1767076641603,159.15,0.0001144,2]
[400083827,1767076641794,159.15,0.00012113,2]
[400083828,1767076657137,-159.15,0.00012786,2]
[400083829,1767076657161,-90.85313919,0.00013459,2]
[400083892,1767077049038,433.73511798,0.00030136,120]
[400083901,1767077133129,-68.29686081,0.00013459,2]
[400083902,1767077133151,-167.31144908,0.00013795,2]
[400083904,1767077232095,-27.68855092,0.00013795,2]
[400083905,1767077232123,-300.0,0.00013795,2]
[400083906,1767077232150,-159.15,0.00014132,2]
[400083907,1767077232174,-195.0,0.00014145,2]
[400083908,1767077232202,-240.64637572,0.00014535,2]
[400083909,1767077232226,-159.15,0.00014805,2]
[400083910,1767077232249,-195.0,0.00014805,2]
[400083911,1767077232273,-300.0,0.00014805,2]
[400083912,1767077232298,-195.0,0.00014805,2]
[400083913,1767077232322,-620.86211664,0.00014805,2]
[400083914,1767077232346,-159.15,0.00015478,2]
[400083915,1767077232369,-180.28117495,0.00015647,2]
[400083916,1767077232392,-200.0,0.00015741,2]
[400083917,1767077232417,-300.0,0.00015746,2]
[400083918,1767077232441,-250.0,0.00015747,2]
[400083919,1767077232464,-250.0,0.00015747,2]
[400083920,1767077232486,-250.0,0.00015747,2]
[400083921,1767077232509,-250.0,0.00015747,2]
[400083922,1767077232533,-6839.71,0.00015872,2]
[400083923,1767077232555,-1000.0,0.00016049,2]
[400083924,1767077232581,-151.0,0.00016129,2]
[400083925,1767077232604,-151.0,0.00016129,2]
[400083926,1767077232629,-159.15,0.0001615,2]
[400083927,1767077232653,-200.0,0.00016298,2]
[400083928,1767077232677,-200.0,0.00016428,2]
[400083929,1767077232701,-151.0,0.00016428,2]
[400083930,1767077232726,-151.0,0.00016428,2]
[400083931,1767077232750,-300.0,0.00016436,2]
[400083932,1767077232773,-1200.0,0.00016437,2]
[400083933,1767077232796,-1640.42779375,0.00016438,2]
[400084012,1767077431709,-351.80482366,0.00016342,2]
[400084013,1767077431773,-943.64768044,0.00016342,2]
[400084014,1767077431783,-151.0,0.00016347,2]
[400084015,1767077431794,-17.65664362,0.00016347,2]
[400084016,1767077432005,-133.34335638,0.00016347,2]
[400084017,1767077432015,-151.0,0.00016353,2]
[400084018,1767077432025,-151.0,0.00016353,2]
[400084022,1767077432267,-300.0,0.00016427,2]
[400084023,1767077432284,-300.0,0.00016427,2]
[400084024,1767077432294,-321.55,0.00016428,2]
[400084025,1767077432304,-151.0,0.00016428,2]
[400084026,1767077432314,-151.0,0.00016428,2]
[400084027,1767077432324,-151.0,0.00016428,2]
[400084028,1767077432333,-151.0,0.00016428,2]
[400084029,1767077432343,-151.0,0.00016428,2]
[400084030,1767077432352,-151.0,0.00016428,2]
[400084031,1767077432363,-151.0,0.00016428,2]
[400084032,1767077432372,-151.0,0.00016428,2]
[400084033,1767077432385,-151.0,0.00016428,2]
[400084034,1767077432395,-151.0,0.00016428,2]
[400084035,1767077432405,-151.0,0.00016428,2]
[400084036,1767077432414,-151.0,0.00016428,2]
[400084037,1767077432424,-151.0,0.00016428,2]
[400084038,1767077432434,-151.0,0.00016428,2]
[400084039,1767077432444,-151.0,0.00016428,2]
[400084040,1767077432454,-151.0,0.00016428,2]
[400084041,1767077432464,-151.0,0.00016428,2]
[400084042,1767077432474,-224.0247474,0.00016428,2]
[400084043,1767077432483,-550.0,0.00016437,2]
[400084044,1767077432493,-1104.26920502,0.00016438,2]
[400084045,1767077432505,-539.07428944,0.00016438,2]
[400084046,1767077432517,-940.0,0.00016438,2]
[400084058,1767077437706,-1349.90711029,0.00016438,2]
[400084059,1767077437770,-141.4316015,0.00016438,2]
[400084060,1767077437780,-481.74,0.00016541,2]
[400084061,1767077437791,-481.74,0.00016541,2]
[400084062,1767077437802,-481.74,0.00016541,2]
[400084063,1767077437813,-481.74,0.00016541,2]
[400084064,1767077437823,-500.0,0.00016699,2]
[400084065,1767077437834,-550.33064428,0.00016699,2]
[400084066,1767077437844,-179.48045514,0.000167,2]
[400084067,1767077437856,-4550.27319132,0.000167,2]
[400084068,1767077437891,-1081.88322415,0.000167,2]
[400084069,1767077438046,-488679.19462939,0.000167,2]
[400084070,1767077438057,-4985.08771928,0.000167,2]
[400084071,1767077438066,-321.55,0.00016702,2]
[400084072,1767077438076,-1783.0728,0.000168,2]
[400084073,1767077438086,-2500.0,0.000168,2]
[400084074,1767077438097,-159.15,0.00016823,2]
[400084075,1767077438107,-200.1974,0.00016889,2]
[400084076,1767077438118,-3014.92901925,0.0001689,2]
[400084077,1767077438128,-173.1391267,0.0001689,2]
[400084078,1767077438138,-197.79203801,0.0001689,2]
[400084079,1767077438149,-6091.60745496,0.0001689,2]
[400084080,1767077438159,-163.52770626,0.0001689,2]
[400084081,1767077438169,-500.0,0.00016899,2]
[400084082,1767077438179,-394.70468696,0.00016899,2]
[400084083,1767077438189,-500.0,0.00016899,2]
[400084084,1767077438200,-500.0,0.00016899,2]
[400084086,1767077438210,-163.82,0.00016917,2]
[400084088,1767077438221,-321.55,0.00016976,2]
[400084090,1767077438232,-30502.7921109,0.0001699,2]
[400084092,1767077438241,-200.02709707,0.00016999,2]
[400084094,1767077438251,-31800.50937141,0.00017,2]
[400084096,1767077438264,-2226.80422312,0.00017,2]
[400084098,1767077438276,-12747.88717222,0.00017,2]
[400084163,1767077438841,-1819.46844486,0.00017,2]
[400084166,1767077438857,-9050.06184128,0.00017,2]
[400084267,1767077439865,-273.27992881,0.00017,2]
[400084269,1767077439878,-874.79989252,0.00017,2]
[400084271,1767077439890,-279.8899995,0.00017,2]
[400084278,1767077439943,-412.8989822,0.00017,2]
[400084843,1767077445821,-1010.1,0.00017,2]
[400084850,1767077445884,-477.8874149,0.00017,2]
[400084852,1767077445896,-518.799982,0.00017,2]
[400084855,1767077445908,-1907.42836594,0.00017,2]
[400084857,1767077445919,-16906.38389332,0.00017,2]
[400084873,1767077446066,-4095.31242003,0.00017,2]
[400085703,1767078125595,766.19,0.000202,30]
[400085709,1767078631968,-150.0,0.00016011,2]
[400085710,1767078631979,-2876.38,0.00016025,2]
[400085711,1767078631989,-181.969832,0.000161,2]
[400085712,1767078631999,-460.7,0.000162,2]
[400085713,1767078632009,-166.66,0.00016228,2]
[400085714,1767078632019,-151.0,0.00016312,2]
[400085715,1767078632029,-151.0,0.00016312,2]
[400085716,1767078632038,-528.50179489,0.00016366,2]
[400085717,1767078632195,-574.04385905,0.00016366,2]
[400085719,1767078632208,-700.69434606,0.00016366,2]
[400085720,1767078632218,-286.845,0.00016366,2]
[400085721,1767078632231,-493.62287552,0.00016425,2]
[400085722,1767078632241,-776.73713347,0.000165,2]
[400085723,1767078632253,-345.21297309,0.000165,2]
[400085724,1767078632263,-166.66,0.00016569,2]
[400085725,1767078632272,-300.0,0.00016598,2]
[400085726,1767078632281,-176.40905376,0.00016599,2]
[400085727,1767078632293,-551.9277946,0.00016599,2]
[400085728,1767078632304,-1326.4511873,0.00016599,2]
[400085729,1767078632315,-8406.3084529,0.00016599,2]
[400085730,1767078632326,-1368.79074071,0.00016599,2]
[400085731,1767078632337,-612.54757404,0.00016599,2]
[400085732,1767078632349,-8318.87290229,0.00016599,2]
[400085733,1767078632364,-1014.31929586,0.00016599,2]
[400085734,1767078632375,-861.87017049,0.00016599,2]
[400085735,1767078632386,-949.88208494,0.00016599,2]
[400085738,1767078638063,-500.0,0.00016598,2]
[400085739,1767078638074,-186.26906812,0.00016598,2]
[400085740,1767078638085,-500.0,0.00016598,2]
[400085741,1767078638094,-500.0,0.00016598,2]
[400085742,1767078638105,-500.0,0.00016598,2]
[400085743,1767078638115,-500.0,0.00016598,2]
[400085744,1767078638124,-500.0,0.00016598,2]
[400085745,1767078638133,-363.13836971,0.00016598,2]
[400085746,1767078638169,-136.86163029,0.00016598,2]
[400085747,1767078638179,-500.0,0.00016598,2]
[400085748,1767078638189,-301.24654883,0.00016598,2]
[400085749,1767078638199,-500.0,0.00016598,2]
[400085750,1767078638212,-425.36808982,0.00016598,2]
[400085751,1767078638222,-500.0,0.00016598,2]
[400085752,1767078638233,-500.0,0.00016598,2]
[400085753,1767078638243,-500.0,0.00016598,2]
[400085754,1767078638253,-500.0,0.00016598,2]
[400085755,1767078638263,-500.0,0.00016598,2]
[400085756,1767078638273,-500.0,0.00016598,2]
[400085757,1767078638283,-500.0,0.00016598,2]
[400085758,1767078638292,-500.0,0.00016598,2]
[400085759,1767078638302,-500.0,0.00016598,2]
[400085760,1767078638312,-500.0,0.00016598,2]
[400085761,1767078638321,-572.47685876,0.00016598,2]
[400085762,1767078638330,-500.0,0.00016598,2]
[400085763,1767078638340,-500.0,0.00016598,2]
[400085764,1767078638350,-500.0,0.00016598,2]
[400085765,1767078638359,-500.0,0.00016598,2]
[400085766,1767078638369,-500.0,0.00016598,2]
[400085767,1767078638380,-500.0,0.00016598,2]
[400085768,1767078638389,-500.0,0.00016598,2]
[400085769,1767078638400,-500.0,0.00016598,2]
[400085770,1767078638409,-500.0,0.00016598,2]
[400085772,1767078638420,-500.0,0.00016598,2]
[400085774,1767078638430,-500.0,0.00016598,2]
[400085776,1767078638440,-500.0,0.00016598,2]
[400085778,1767078638449,-137649.50624247,0.00016599,2]
[400085780,1767078638461,-21140.7663994,0.00016599,2]
[400085783,1767078638475,-30694.00722336,0.00016599,2]
[400085785,1767078638487,-999.0,0.00016599,2]
[400085787,1767078638498,-821.0,0.00016599,2]
[400085952,1767078640001,-5406.50649121,0.00016599,2]
[400085959,1767078640052,-610929.88888667,0.00016599,2]
[400085961,1767078640062,-5311.00027412,0.000166,2]
[400085963,1767078640072,-2500.0,0.000166,2]
[400085965,1767078640081,-6659.8129653,0.000166,2]
[400085967,1767078640092,-200.0,0.0001669,2]
[400085969,1767078640101,-185.5213676,0.0001669,2]
[400085971,1767078640110,-307.26,0.00016699,2]
[400085973,1767078640120,-500.0,0.00016699,2]
[400085975,1767078640129,-510.39249297,0.00016699,2]
[400085977,1767078640139,-166.09868877,0.000167,2]
[400085979,1767078640149,-993.0378914,0.00016756,2]
[400085982,1767078640158,-25000.0,0.00016838,3]
[400085984,1767078640167,-25000.0,0.00016847,3]
[400085986,1767078640178,-25000.0,0.00016856,3]
[400085987,1767078640188,-25000.0,0.00016865,3]
[400085990,1767078640198,-25000.0,0.00016874,3]
[400085992,1767078640207,-7025.7542156,0.00016882,3]
[400085994,1767078640218,-1902.07,0.00016882,3]
[400085996,1767078640230,-746.20442043,0.00016882,3]
[400085998,1767078640241,-2860.95238278,0.00016882,3]
[400086003,1767078640278,-776.42636932,0.00016882,3]
[400086005,1767078640291,-3464.4454591,0.00016882,3]
[400086226,1767078644000,-8224.14715277,0.00016882,3]
[400086228,1767078644011,-17757.16891832,0.00016891,3]
[400086229,1767078644023,-662.76,0.00016891,3]
[400086230,1767078645185,-302.05042645,0.00016891,3]
[400086231,1767078645908,-1782.93,0.00016891,3]
[400086232,1767078645920,-4495.09065523,0.00016891,3]
[400086233,1767078645931,-166.66,0.00016911,2]
[400086234,1767078645942,-500.0,0.00016932,2]
[400086235,1767078645952,-307.26,0.00016973,2]
[400086236,1767078645962,-201.91382997,0.0001699,2]
[400086237,1767078645972,-196.54095421,0.00016999,2]
[400086238,1767078645983,-201.84101789,0.00016999,2]
[400086239,1767078645993,-500.0,0.00016999,2]
[400086240,1767078646003,-376.10175729,0.00016999,2]
[400086241,1767078646013,-500.0,0.00016999,2]
[400086242,1767078646023,-500.0,0.00016999,2]
[400086243,1767078646033,-325.70789428,0.00016999,2]
[400086244,1767078646043,-8532.97463828,0.00017,2]
[400086245,1767078646087,-10857.50445949,0.00017,2]
[400086246,1767078646098,-1008.24074895,0.00017,2]
[400086247,1767078646109,-383.87296915,0.00017,2]
[400086248,1767078646257,-592.40075735,0.00017,2]
[400086251,1767078663717,300.25,0.00013699,2]
[400086252,1767079414888,819.4,0.00030137,120]
[400086253,1767079540151,272.93,8.057e-05,2]
[400086254,1767079540354,272.93,8.481e-05,2]
[400086255,1767079540771,272.93,8.905e-05,2]
[400086256,1767079540972,272.93,9.329e-05,2]
[400086257,1767079541170,272.93,9.753e-05,2]
[400086258,1767079541369,272.93,0.00010177,2]
[400086259,1767079541557,272.93,0.00010601,2]
[400086260,1767079541750,272.93,0.00011025,2]
[400086261,1767079541973,272.93,0.00011449,2]
[400086262,1767079542176,272.93,0.00011873,2]
[400086263,1767079542384,272.93,0.00012297,2]
[400086264,1767079542589,272.93,0.00012721,2]
[400086265,1767079553140,-272.93,0.00013145,2]
[400086266,1767079553168,-195.79837343,0.00013569,2]
[400086267,1767079626120,-77.13162657,0.00013569,2]
[400086268,1767079626143,-76.7647398,0.00013993,2]
[400086273,1767079749079,-196.1652602,0.00013993,2]
[400086274,1767079749102,-272.93,0.00014417,2]
[400086275,1767079749125,-272.93,0.00014841,2]
[400086276,1767079749150,-272.93,0.00015265,2]
[400086291,1767079832089,-272.93,0.00015689,2]
[400086292,1767079832100,-200.0,0.00015836,2]
[400086293,1767079832110,-47.63194573,0.0001592,2]
[400086294,1767079832146,-119.85805427,0.0001592,2]
[400086295,1767079832163,-200.0,0.0001592,2]
[400086296,1767079832173,-272.93,0.00016113,2]
[400086297,1767079832184,-1442.592,0.00016169,2]
[400086298,1767079832195,-263.711,0.00016169,2]
[400086299,1767079832205,-151.0,0.00016257,2]
[400086300,1767079832215,-151.0,0.00016267,2]
[400086301,1767079832225,-151.0,0.00016267,2]
[400086302,1767079832236,-151.0,0.00016269,2]
[400086303,1767079832246,-151.0,0.00016271,2]
[400086304,1767079832255,-151.0,0.00016271,2]
[400086305,1767079832265,-1578.21066723,0.00016398,2]
[400086307,1767079832276,-326.71333278,0.00016398,2]
[400086309,1767079832287,-13990.59777551,0.00016398,2]
[400086311,1767079832299,-9204.98287764,0.00016398,2]
[400086313,1767079832311,-251.0,0.00016398,2]
[400086380,1767079838080,-12382.0090856,0.00016398,2]
[400086383,1767079838140,-2526.07203788,0.00016398,2]
[400086384,1767079838153,-305.30632336,0.00016398,2]
[400086385,1767079838166,-300.0,0.00016398,2]
[400086386,1767079838176,-167.10973288,0.00016399,2]
[400086387,1767079838189,-6262.01398455,0.00016399,2]
[400086388,1767079838199,-5533.26,0.00016438,2]
[400086389,1767079838209,-1077.55509592,0.00016498,5]
[400086390,1767079838219,-153.63,0.00016498,2]
[400086391,1767079838229,-214.5162,0.00016499,2]
[400086392,1767079838239,-300.0,0.00016653,2]
[400086393,1767079838248,-5269.34149602,0.00016654,2]
[400086394,1767079838260,-731.7211442,0.00016654,2]
[400086395,1767079838275,-4071.44488637,0.00016654,2]
[400086396,1767079838286,-41873.68,0.00016654,2]
[400086590,1767079840179,-325.929999,0.00016654,2]
[400086592,1767079840191,-841.0,0.00016654,2]
[400086598,1767079840240,-500.0,0.00016654,2]
[400086606,1767079840304,-607.11128601,0.00016654,2]
[400086608,1767079840316,-1378.47091591,0.00016654,2]
[400086615,1767079840372,-9361.54627729,0.00016654,2]
[400086617,1767079840381,-6539.8890819,0.00016654,2]
[400086619,1767079840391,-1000.0,0.00016695,2]
[400086621,1767079840401,-502.0,0.0001674,2]
[400086623,1767079840411,-153.63845216,0.00016772,2]
[400086625,1767079840420,-160.0,0.000169,2]
[400086626,1767079840430,-981.70634324,0.000169,2]
[400086629,1767079840440,-331.5631509,0.00016907,2]
[400086631,1767079840449,-201.91382997,0.0001699,2]
[400086633,1767079840459,-151.0,0.00016997,2]
[400086635,1767079840468,-300.0,0.00016999,2]
[400086637,1767079840478,-500.0,0.00016999,2]
[400086639,1767079840487,-500.0,0.00016999,2]
[400086641,1767079840497,-500.0,0.00016999,2]
[400086643,1767079840507,-500.0,0.00016999,2]
[400086645,1767079840516,-500.0,0.00016999,2]
[400086647,1767079840525,-500.0,0.00016999,2]
[400086649,1767079840535,-500.0,0.00016999,2]
[400086651,1767079840544,-500.0,0.00016999,2]
[400086653,1767079840554,-500.0,0.00016999,2]
[400086655,1767079840564,-500.0,0.00016999,2]
[400086657,1767079840574,-500.0,0.00016999,2]